fUST/lending_fUST_20241105
["ID","MTS","AMOUNT","RATE_DAILY","PERIOD"]
[341317258,1730773843477,-120.84161778,0.00021092,2]
[341317265,1730773846433,-187.25666601,0.00021092,2]
[341317266,1730773846442,-543.98073097,0.00021092,2]
[341317268,1730773846452,-500.0,0.00021092,2]
[341317269,1730773846462,-500.0,0.00021092,2]
[341317270,1730773846471,-457.56255122,0.00021092,2]
[341317271,1730773846480,-500.0,0.00021092,2]
[341317272,1730773846496,-500.0,0.00021092,2]
[341317273,1730773846504,-500.0,0.00021092,2]
[341317274,1730773846511,-500.0,0.00021092,2]
[341317275,1730773846518,-500.0,0.00021092,2]
[341317276,1730773846528,-500.0,0.00021092,2]
[341317277,1730773846537,-500.0,0.00021092,2]
[341317278,1730773846546,-500.0,0.00021092,2]
[341317279,1730773846555,-500.0,0.00021092,2]
[341317280,1730773846563,-500.0,0.00021092,2]
[341317281,1730773846570,-500.0,0.00021092,2]
[341317282,1730773846579,-500.0,0.00021092,2]
[341317283,1730773846587,-500.0,0.00021092,2]
[341317284,1730773846595,-500.0,0.00021092,2]
[341317285,1730773846603,-364.08229737,0.00021092,2]
[341317291,1730774164019,172.5320244,0.00019817,2]
[341317292,1730774354147,301.038672,0.0002009,2]
[341317293,1730774514464,210.612165,0.00020062,2]
[341317294,1730774541823,7900.0,0.0002,30]
[341317295,1730774653078,161.771772,0.00019996,2]
[341317296,1730774653326,161.771772,0.0002001,2]
[341317297,1730774653469,161.771772,0.00020024,2]
[341317298,1730774653680,161.771772,0.00020039,2]
[341317299,1730774653892,161.771772,0.00020053,2]
[341317300,1730774654094,161.771772,0.00020067,2]
[341317301,1730774654293,161.771772,0.00020082,2]
[341317302,1730774654526,161.771772,0.00020096,2]
[341317303,1730774688096,1015.88067911,0.00020141,2]
[341317313,1730774833629,963.6728866,0.0002,2]
[341317314,1730774841186,-7178.94672855,0.00020605,2]
[341317315,1730774841206,-210.612165,0.00020747,2]
[341317316,1730774841227,-300.0,0.00021083,2]
[341317317,1730774841248,-300.0,0.00021083,2]
[341317318,1730774841270,-500.0,0.00021084,2]
[341317319,1730774841290,-500.0,0.00021084,2]
[341317320,1730774841311,-500.0,0.00021084,2]
[341317321,1730774841334,-500.0,0.00021084,2]
[341317322,1730774841357,-500.0,0.00021084,2]
[341317323,1730774841377,-500.0,0.00021084,2]
[341317324,1730774841397,-500.0,0.00021084,2]
[341317325,1730774841419,-42.9392647,0.00021084,2]
[341317326,1730774862201,161.209471,0.00013973,2]
[341317327,1730774988062,210.612165,0.00020084,2]
[341317328,1730775020599,49.408977,0.00020044,2]
[341317329,1730775020623,128.82244573,0.00020044,2]
[341317371,1730775038977,-300.0,0.00021082,2]
[341317372,1730775038987,-201.60871891,0.00021082,2]
[341317404,1730775380790,24900.0,0.00020081,2]
[341317405,1730775383176,175.334,0.00018896,2]
[341317407,1730775476251,163.219024,0.0002008,2]
[341317408,1730775486219,520.0,0.00033665,120]
[341317441,1730776006093,-300.0,0.00021074,2]
[341317442,1730776006115,-34.05979884,0.00021074,2]
[341317443,1730776024450,161.209471,0.00013973,2]
[341317445,1730776048086,-300.0,0.00021073,2]
[341317446,1730776048109,-300.0,0.00021073,2]
[341317447,1730776048130,-266.7636307,0.00021074,2]
[341317448,1730776048151,-500.0,0.00021074,2]
[341317449,1730776048174,-500.0,0.00021074,2]
[341317450,1730776048196,-492.38593657,0.00021074,2]
[341317451,1730776190628,171.35258275,0.00020874,2]
[341317462,1730776232863,-983.3462081,0.00020874,2]
[341317486,1730776239748,-213.05451911,0.00020874,2]
[341317487,1730776239758,-123.44548085,0.00021072,2]
[341317488,1730776239772,-176.55451915,0.00021072,2]
[341317489,1730776239781,-300.0,0.00021072,2]
[341317490,1730776239791,-500.0,0.00021072,2]
[341317491,1730776239801,-500.0,0.00021072,2]
[341317492,1730776239810,-500.0,0.00021072,2]
[341317493,1730776239819,-500.0,0.00021072,2]
[341317494,1730776239829,-500.0,0.00021072,2]
[341317495,1730776239838,-282.04572896,0.00021072,2]
[341317496,1730776239847,-500.0,0.00021072,2]
[341317497,1730776239856,-500.0,0.00021072,2]
[341317498,1730776239866,-500.0,0.00021072,2]
[341317499,1730776239875,-500.0,0.00021072,2]
[341317500,1730776239885,-500.0,0.00021072,2]
[341317501,1730776239894,-500.0,0.00021072,2]
[341317502,1730776239904,-500.0,0.00021072,2]
[341317503,1730776239915,-500.0,0.00021072,2]
[341317504,1730776239924,-500.0,0.00021072,2]
[341317505,1730776239933,-500.0,0.00021072,2]
[341317506,1730776239943,-500.0,0.00021072,2]
[341317507,1730776239952,-500.0,0.00021072,2]
[341317508,1730776239962,-151.0,0.00021073,2]
[341317509,1730776239972,-178.018601,0.00021073,2]
[341317510,1730776239981,-199.601659,0.00021073,2]
[341317511,1730776239991,-750.74074374,0.00021073,2]
[341317512,1730776240001,-151.0,0.00021074,2]
[341317513,1730776240010,-157.95545,0.00021074,2]
[341317514,1730776240020,-198.729972,0.00021075,2]
[341317515,1730776240029,-151.0,0.00021075,2]
[341317516,1730776240039,-151.0,0.00021075,2]
[341317517,1730776240048,-151.0,0.00021075,2]
[341317518,1730776240058,-151.0,0.00021075,2]
[341317519,1730776240067,-151.0,0.00021075,2]
[341317520,1730776240076,-151.0,0.00021075,2]
[341317521,1730776240086,-174.423579,0.00021075,2]
[341317522,1730776240095,-151.00000082,0.00021075,2]
[341317523,1730776240105,-153.881419,0.00021076,2]
[341317524,1730776240114,-213.78574223,0.00021126,2]
[341317525,1730776240123,-2126.10209132,0.00021126,2]
[341317526,1730776240132,-5000.0,0.00021917,2]
[341317527,1730776240142,-5000.0,0.00021917,2]
[341317528,1730776240152,-166.666666,0.00021918,2]
[341317529,1730776240161,-2207.70152424,0.00022,2]
[341317530,1730776240171,-188.65278558,0.000221,2]
[341317531,1730776240180,-342.51147754,0.000221,2]
[341317532,1730776240189,-166.666666,0.00022431,2]
[341317533,1730776240198,-420.0,0.0002292,2]
[341317534,1730776240207,-166.666666,0.00022944,2]
[341317535,1730776240217,-500.0,0.00023004,2]
[341317536,1730776240226,-510.34747806,0.00023111,2]
[341317537,1730776240235,-261.1254018,0.00023111,2]
[341317538,1730776240244,-420.0,0.00023179,2]
[341317539,1730776240254,-503.00861612,0.00023261,2]
[341317540,1730776240263,-416.72958692,0.0002339,2]
[341317541,1730776240273,-449.77855225,0.0002343,2]
[341317542,1730776240378,-166.666666,0.00023456,2]
[341317543,1730776240388,-1252.6383016,0.00023964,2]
[341317544,1730776240398,-166.666666,0.00023969,2]
[341317545,1730776240408,-505.35261576,0.00024374,2]
[341317546,1730776240420,-166.666666,0.00024482,2]
[341317547,1730776240431,-1000.0,0.00024558,2]
[341317548,1730776240440,-775.33,0.00024648,3]
[341317549,1730776240451,-5000.0,0.00024658,2]
[341317550,1730776240461,-291.33926893,0.00024658,2]
[341317580,1730776241012,-4708.66073107,0.00024658,2]
[341317582,1730776241024,-2091.33926893,0.00024658,2]
[341317673,1730776244152,-37.11775543,0.00024658,2]
[341317763,1730776370530,2081.70312589,0.00033662,120]
[341317765,1730776741664,1956.06956406,0.0001529,2]
[341317766,1730776757891,1996.34083929,0.0002015,2]
[341317767,1730776984973,1746.79823437,0.00020148,2]
[341317769,1730777120227,24880.0,0.00019995,2]
[341317770,1730777182535,161.209471,0.00013973,2]
[341317771,1730777231121,-300.0,0.00020245,2]
[341317772,1730777231144,-300.0,0.00020245,2]
[341317773,1730777231168,-500.0,0.00020246,2]
[341317774,1730777231191,-500.0,0.00020246,2]
[341317775,1730777231212,-35.58204075,0.00020246,2]
[341317778,1730777326674,446.43578002,0.00016,7]
[341317782,1730777359157,-300.0,0.00020244,2]
[341317783,1730777359182,-300.0,0.00020244,2]
[341317784,1730777359205,-500.0,0.00020245,2]
[341317785,1730777359229,-500.0,0.00020245,2]
[341317786,1730777359253,-500.0,0.00020245,2]
[341317787,1730777359276,-500.0,0.00020245,2]
[341317788,1730777359299,-500.0,0.00020245,2]
[341317789,1730777359323,-500.0,0.00020245,2]
[341317790,1730777359346,-253.56063655,0.00020245,2]
[341317791,1730777359369,-408.8506498,0.00020245,2]
[341317792,1730777359392,-500.0,0.00020245,2]
[341317793,1730777359417,-500.0,0.00020245,2]
[341317794,1730777359439,-500.0,0.00020245,2]
[341317795,1730777359461,-500.0,0.00020245,2]
[341317796,1730777359486,-500.0,0.00020245,2]
[341317797,1730777359510,-500.0,0.00020245,2]
[341317798,1730777359531,-500.0,0.00020245,2]
[341317799,1730777359555,-490.81401938,0.00020245,2]
[341317800,1730777359580,-450.8555506,0.00020245,2]
[341317801,1730777359601,-500.0,0.00020245,2]
[341317802,1730777359623,-500.0,0.00020245,2]
[341317803,1730777359645,-427.97616333,0.00020245,2]
[341317804,1730777359667,-500.0,0.00020245,2]
[341317805,1730777359689,-500.0,0.00020245,2]
[341317806,1730777359710,-500.0,0.00020245,2]
[341317807,1730777359732,-500.0,0.00020245,2]
[341317808,1730777359757,-500.0,0.00020245,2]
[341317809,1730777359779,-500.0,0.00020245,2]
[341317810,1730777359800,-500.0,0.00020245,2]
[341317811,1730777359822,-500.0,0.00020245,2]
[341317812,1730777359846,-500.0,0.00020245,2]
[341317813,1730777359867,-500.0,0.00020245,2]
[341317814,1730777359889,-500.0,0.00020245,2]
[341317815,1730777359918,-500.0,0.00020245,2]
[341317816,1730777359939,-500.0,0.00020245,2]
[341317817,1730777359962,-500.0,0.00020245,2]
[341317818,1730777359984,-500.0,0.00020245,2]
[341317819,1730777360006,-500.0,0.00020245,2]
[341317820,1730777360028,-500.0,0.00020245,2]
[341317821,1730777360150,-500.0,0.00020245,2]
[341317822,1730777360182,-500.0,0.00020245,2]
[341317823,1730777360205,-500.0,0.00020245,2]
[341317824,1730777360227,-330.50531498,0.00020245,2]
[341317825,1730777360262,-169.49468502,0.00020245,2]
[341317826,1730777360284,-140.77625526,0.00020245,2]
[341317827,1730777366138,-367.28047531,0.00020245,2]
[341317828,1730777366160,-500.0,0.00020245,2]
[341317829,1730777366181,-500.0,0.00020245,2]
[341317830,1730777366202,-500.0,0.00020245,2]
[341317831,1730777366223,-500.0,0.00020245,2]
[341317832,1730777366244,-500.0,0.00020245,2]
[341317833,1730777366265,-500.0,0.00020245,2]
[341317834,1730777366286,-500.0,0.00020245,2]
[341317835,1730777366307,-500.0,0.00020245,2]
[341317836,1730777366327,-500.0,0.00020245,2]
[341317837,1730777366349,-500.0,0.00020245,2]
[341317838,1730777366372,-500.0,0.00020245,2]
[341317839,1730777366392,-500.0,0.00020245,2]
[341317840,1730777366412,-500.0,0.00020245,2]
[341317841,1730777366432,-500.0,0.00020245,2]
[341317842,1730777366452,-500.0,0.00020245,2]
[341317843,1730777366472,-500.0,0.00020245,2]
[341317844,1730777366492,-500.0,0.00020245,2]
[341317845,1730777366514,-500.0,0.00020245,2]
[341317846,1730777366535,-500.0,0.00020245,2]
[341317847,1730777366555,-500.0,0.00020245,2]
[341317848,1730777366576,-151.0,0.00020246,2]
[341317849,1730777366598,-102.44323335,0.00020246,2]
[341317879,1730777438419,-161.58793665,0.00020246,2]
[341317880,1730777438429,-151.0,0.00020247,2]
[341317881,1730777438438,-207.476013,0.00020247,2]
[341317882,1730777438447,-151.0,0.00020247,2]
[341317884,1730777438457,-1853.872764,0.00020377,2]
[341317887,1730777438468,-168.8145907,0.0002041,2]
[341317889,1730777438477,-570.28061545,0.00020874,2]
[341317891,1730777438486,-152.981849,0.0002107,2]
[341317893,1730777438496,-162.213846,0.00021365,2]
[341317895,1730777438505,-849.8162796,0.00021365,2]
[341317897,1730777438514,-1097.663358,0.00021382,2]
[341317899,1730777438523,-162.213846,0.00021418,2]
[341317901,1730777438532,-162.213846,0.00021471,2]
[341317902,1730777438542,-185.036577,0.00021918,2]
[341317903,1730777438551,-179.956015,0.00021918,2]
[341317904,1730777438559,-300.0,0.00022066,2]
[341317906,1730777438570,-1097.663358,0.00022067,2]
[341317907,1730777438579,-1097.663358,0.00022752,2]
[341317908,1730777438589,-211.1877169,0.00023918,2]
[341317909,1730777438598,-211.1877169,0.00023918,2]
[341317910,1730777438607,-211.1877169,0.00023918,2]
[341317911,1730777438617,-211.1877169,0.00023918,2]
[341317912,1730777438626,-420.0,0.00023977,2]
[341317913,1730777438635,-210.6446224,0.00024178,2]
[341317914,1730777438644,-179.956015,0.00024482,2]
[341317915,1730777438653,-431.05402211,0.00024558,2]
[341317916,1730777438663,-272.3172834,0.00024656,2]
[341317917,1730777438672,-165.64600215,0.00024656,2]
[341317918,1730777438682,-454.49103993,0.00024656,2]
[341317919,1730777438691,-500.0,0.00024656,2]
[341317920,1730777438700,-500.0,0.00024656,2]
[341317921,1730777438709,-500.0,0.00024656,2]
[341317922,1730777438718,-500.0,0.00024656,2]
[341317923,1730777438727,-256.88360816,0.00024657,2]
[341317924,1730777438736,-9058.60304099,0.00024657,2]
[341317925,1730777438745,-213.78574224,0.00024657,2]
[341317926,1730777438754,-160.47454949,0.00024658,2]
[341317927,1730777438764,-660.0,0.00024658,2]
[341317928,1730777438773,-5000.0,0.00024658,2]
[341317929,1730777438783,-5000.0,0.00024658,2]
[341317930,1730777438791,-915.12582475,0.00024658,2]
[341317931,1730777438825,191.32,0.0002,2]
[341317950,1730777446212,-1528.4484551,0.00024558,2]
[341317951,1730777446225,-4084.87417525,0.00024658,2]
[341317952,1730777446235,-5000.0,0.00024658,2]
[341317953,1730777446245,-1653.10057837,0.00024658,2]
[341317954,1730777532904,256.62890618,0.00020146,2]
[341317957,1730777880522,161.524876,0.00013973,2]
[341317958,1730778256111,199.0,0.00024,60]
[341317959,1730778432135,-165.0,0.00022,2]
[341317960,1730778432158,-300.0,0.00022702,2]
[341317961,1730778432181,-300.0,0.00022702,2]
[341317962,1730778432205,-500.0,0.00022703,2]
[341317963,1730778432226,-270.67032155,0.00022703,2]
[341317964,1730778432249,-500.0,0.00022703,2]
[341317965,1730778432276,-542.9392647,0.00022703,2]
[341317966,1730778432303,-500.0,0.00022703,2]
[341317967,1730778432325,-500.0,0.00022703,2]
[341317968,1730778432348,-500.0,0.00022703,2]
[341317969,1730778432370,-500.0,0.00022703,2]
[341317970,1730778432392,-624.91749566,0.00022703,2]
[341317971,1730778432413,-5495.36843559,0.00022704,2]
[341317972,1730778436086,-2290.27145422,0.00022704,2]
[341317973,1730778516188,161.524876,0.00013973,2]
[341317999,1730778632452,-165.0,0.00022,2]
[341318000,1730778632464,-1246.67926921,0.00022704,2]
[341318001,1730778632475,-23.4679004,0.00022704,2]
[341318002,1730778632489,-7396.84476449,0.00022704,2]
[341318003,1730778632499,-300.0,0.00022729,2]
[341318004,1730778632510,-300.0,0.00022729,2]
[341318005,1730778632520,-1731.54805192,0.0002273,2]
[341318030,1730778638742,-1530.49411378,0.0002273,2]
[341318031,1730778638752,-165.0,0.00023014,2]
[341318032,1730778638762,-7245.21927138,0.00023574,2]
[341318033,1730778638771,-7245.21927138,0.00023917,2]
[341318034,1730778638781,-168.0,0.00024164,2]
[341318035,1730778638790,-1337.39239823,0.00024276,2]
[341318036,1730778638799,-151.0,0.0002436,7]
[341318037,1730778638809,-178.229587,0.0002436,7]
[341318038,1730778638819,-7245.21927138,0.00024376,2]
[341318039,1730778638828,-171.46906,0.00024376,7]
[341318040,1730778638838,-151.0,0.00024383,7]
[341318041,1730778638847,-175.34194163,0.00024462,2]
[341318042,1730778638858,-182.35680193,0.00024473,2]
[341318043,1730778638867,-6107.19177828,0.00024473,2]
[341318044,1730778639071,-55.52114944,0.00024473,2]
[341318052,1730778640408,-1082.50634368,0.00024473,2]
[341318053,1730778640419,-1000.0,0.00024558,2]
[341318054,1730778640429,-151.0,0.00024562,7]
[341318055,1730778640439,-151.0,0.00024562,7]
[341318056,1730778640448,-151.0,0.00024562,7]
[341318057,1730778640462,-151.0,0.0002463,7]
[341318058,1730778640472,-173.43219,0.00024654,7]
[341318059,1730778640482,-256.88360816,0.00024657,2]
[341318060,1730778640492,-292.563,0.00024657,7]
[341318061,1730778640502,-660.0,0.00024658,2]
[341318062,1730778640512,-5000.0,0.00024658,2]
[341318063,1730778640522,-5000.0,0.00024658,2]
[341318064,1730778640531,-5000.0,0.00024658,2]
[341318065,1730778640540,-5000.0,0.00024658,2]
[341318066,1730778640550,-5000.0,0.00024658,2]
[341318067,1730778640559,-5000.0,0.00024658,2]
[341318068,1730778640569,-5000.0,0.00024658,2]
[341318069,1730778640578,-5000.0,0.00024658,2]
[341318070,1730778640587,-5000.0,0.00024658,2]
[341318071,1730778640597,-5000.0,0.00024658,2]
[341318072,1730778640607,-5000.0,0.00024658,2]
[341318073,1730778640617,-5000.0,0.00024658,2]
[341318074,1730778640626,-3992.86682816,0.00024658,2]
[341318080,1730778643347,-958.38751193,0.00024658,2]
[341318086,1730778646253,-48.74565991,0.00024658,2]
[341318087,1730778646263,-332.07821437,0.00024658,2]
[341318088,1730778646898,-514.49574802,0.00024658,2]
[341318089,1730778646961,-268.0,0.00024658,2]
[341318090,1730779604779,161.524876,0.00013973,2]
[341318091,1730779611097,-165.0,0.00022,2]
[341318092,1730779611121,-65.39651117,0.00023587,2]
[341318093,1730779632092,-145.21565383,0.00023587,2]
[341318094,1730779632119,-697.75460122,0.00024551,2]
[341318095,1730779632142,-1170.21834846,0.00024558,2]
[341318096,1730779632167,-153.0,0.000246,2]
[341318097,1730779632192,-153.0,0.000246,2]
[341318098,1730779632215,-153.0,0.000246,2]
[341318099,1730779632239,-300.0,0.00024656,2]
[341318100,1730779632265,-300.0,0.00024656,2]
[341318101,1730779632290,-171.25573877,0.00024657,2]
[341318102,1730779632315,-105.76879101,0.00024657,2]
[341318187,1730779840319,-178.23142273,0.0002354,2]
[341318188,1730779840329,-554.624,0.00023939,2]
[341318189,1730779840338,-1000.0,0.00024412,2]
[341318190,1730779840348,-1000.0,0.0002442,2]
[341318191,1730779840358,-1000.0,0.00024426,2]
[341318192,1730779840367,-1000.0,0.00024432,2]
[341318193,1730779840376,-1000.0,0.00024441,2]
[341318194,1730779840385,-1000.0,0.00024455,2]
[341318195,1730779840395,-1000.0,0.00024512,2]
[341318196,1730779840404,-1000.0,0.00024535,2]
[341318197,1730779840413,-1000.0,0.00024556,2]
[341318198,1730779840423,-300.0,0.00024557,2]
[341318199,1730779840433,-1023.94105485,0.00024558,2]
[341318200,1730779840442,-1000.0,0.00024567,2]
[341318201,1730779840452,-500.0,0.00024567,2]
[341318202,1730779840461,-492.38593657,0.00024567,2]
[341318203,1730779840471,-500.0,0.00024567,2]
[341318204,1730779840481,-160.99483969,0.00024567,2]
[341318205,1730779840490,-500.0,0.00024567,2]
[341318206,1730779840500,-458.757456,0.00024567,2]
[341318207,1730779840510,-1000.0,0.00024568,2]
[341318208,1730779840519,-581.01926331,0.00024615,2]
[341318209,1730779840528,-1000.0,0.00024616,2]
[341318210,1730779840539,-1000.0,0.00024627,2]
[341318211,1730779840548,-1000.0,0.00024646,2]
[341318212,1730779840557,-1000.0,0.00024646,2]
[341318213,1730779840567,-150.01,0.00024657,2]
[341318214,1730779840578,-642.6886161,0.00024658,2]
[341318215,1730779840587,-173.43219,0.00024658,7]
[341318216,1730779840597,-195.405293,0.00024658,7]
[341318217,1730779840610,-151.0,0.00024658,7]
[341318218,1730779840619,-202.462144,0.00024658,7]
[341318219,1730779840628,-151.0,0.00024658,7]
[341318220,1730779840639,-224.29098707,0.00024658,7]
[341318221,1730779840648,-5000.0,0.00024658,2]
[341318222,1730779840657,-5000.0,0.00024658,2]
[341318223,1730779840667,-5000.0,0.00024658,2]
[341318224,1730779840678,-5000.0,0.00024658,2]
[341318225,1730779840688,-5000.0,0.00024658,2]
[341318226,1730779840698,-5000.0,0.00024658,2]
[341318227,1730779840707,-5000.0,0.00024658,2]
[341318228,1730779840717,-5000.0,0.00024658,2]
[341318229,1730779840730,-5000.0,0.00024658,2]
[341318230,1730779840740,-5000.0,0.00024658,2]
[341318231,1730779840749,-5000.0,0.00024658,2]
[341318232,1730779840758,-3643.14738581,0.00024658,2]
[341318241,1730779843208,-500.0,0.00024567,2]
[341318242,1730779843219,-1187.82715444,0.00024658,2]
[341318246,1730779843399,-25.59961235,0.00024658,2]
[341318256,1730780263819,161.524876,0.00013973,2]
[341318257,1730780384480,1107.58,0.00033651,30]
[341318265,1730780829022,166.196033,0.00013973,2]
[341318267,1730780852097,-210.612165,0.00023633,2]
[341318268,1730780852120,-300.0,0.00023938,2]
[341318269,1730780852144,-300.0,0.00023938,2]
[341318270,1730780852167,-150.765,0.00023939,2]
[341318271,1730780852189,-1001.65695601,0.00023939,2]
[341318383,1730781043539,-670.75098491,0.00023939,2]
[341318384,1730781043551,-1723.24901509,0.00023939,2]
[341318385,1730781043560,-594.013,0.00023939,2]
[341318386,1730781043569,-111.73798491,0.00023939,2]
[341318407,1730781308215,161.524876,0.00013973,2]
[341318412,1730781731881,80411.75994327,0.00033653,30]
[341318413,1730781952991,2000.0,0.00033653,30]
[341318414,1730781975604,9487.0,0.00033653,30]
[341318415,1730782049112,-171.9198373,0.00023237,2]
[341318416,1730782049134,-418.0966525,0.00023655,2]
[341318417,1730782049156,-300.0,0.00023832,2]
[341318418,1730782049176,-300.0,0.00023832,2]
[341318419,1730782049197,-529.0,0.00023833,2]
[341318420,1730782049218,-1139.0,0.00023833,2]
[341318421,1730782049239,-2394.0,0.00023833,2]
[341318422,1730782049260,-175.4443794,0.00024558,2]
[341318423,1730782049281,-154.75,0.00024648,3]
[341318424,1730782049302,-500.0,0.00024656,2]
[341318425,1730782049322,-500.0,0.00024656,2]
[341318426,1730782049342,-500.0,0.00024656,2]
[341318427,1730782049363,-500.0,0.00024656,2]
[341318428,1730782049383,-500.0,0.00024656,2]
[341318429,1730782049405,-500.0,0.00024656,2]
[341318430,1730782049425,-624.91749566,0.00024656,2]
[341318431,1730782049445,-500.0,0.00024656,2]
[341318432,1730782049465,-272.90886629,0.00024656,2]
[341318437,1730782168312,235.8587945,0.00021918,10]
[341318438,1730782168334,65.1532055,0.00021918,10]
[341318472,1730782232581,-1623.58907512,0.00023662,2]
[341318501,1730782238692,-1751.10385744,0.00023662,2]
[341318502,1730782238802,-266.47535616,0.00023662,2]
[341318531,1730782240729,-1854.20014688,0.00023662,2]
[341318532,1730782240738,-173.709,0.00023904,2]
[341318533,1730782240747,-150.265,0.00023904,2]
[341318534,1730782240756,-1096.60344101,0.00024558,2]
[341318535,1730782240765,-300.0,0.00024656,2]
[341318536,1730782240774,-192.50147754,0.00024657,2]
[341318537,1730782240784,-500.0,0.00024657,2]
[341318538,1730782240793,-500.0,0.00024657,2]
[341318539,1730782240802,-217.97619869,0.00024657,2]
[341318540,1730782240812,-500.0,0.00024657,2]
[341318541,1730782240821,-205.02342648,0.00024657,2]
[341318542,1730782240830,-500.0,0.00024657,2]
[341318543,1730782240839,-306.2523623,0.00024657,2]
[341318544,1730782240849,-168.83907511,0.00024658,2]
[341318545,1730782240859,-152.423666,0.00024658,7]
[341318546,1730782240868,-155.286172,0.00024658,7]
[341318547,1730782240877,-154.31218,0.00024658,7]
[341318548,1730782240886,-155.115643,0.00024658,7]
[341318549,1730782240896,-234.051,0.00024658,7]
[341318550,1730782240905,-154.734792,0.00024658,7]
[341318551,1730782240914,-151.0,0.00024658,7]
[341318552,1730782240923,-151.0,0.00024658,7]
[341318553,1730782240932,-151.0,0.00024658,7]
[341318554,1730782240941,-151.0,0.00024658,7]
[341318555,1730782240950,-151.0,0.00024658,7]
[341318556,1730782240959,-151.0,0.00024658,7]
[341318557,1730782240969,-151.0,0.00024658,7]
[341318558,1730782240980,-151.0,0.00024658,7]
[341318559,1730782240989,-156.846135,0.00024658,7]
[341318560,1730782240998,-151.0,0.00024658,7]
[341318561,1730782241007,-159.931728,0.00024658,7]
[341318562,1730782241017,-151.0,0.00024658,7]
[341318563,1730782241026,-151.0,0.00024658,7]
[341318564,1730782241035,-151.0,0.00024658,7]
[341318565,1730782241044,-151.0,0.00024658,7]
[341318566,1730782241053,-151.0,0.00024658,7]
[341318567,1730782241070,-248.301207,0.00024658,7]
[341318568,1730782241079,-151.0,0.00024658,7]
[341318569,1730782241088,-151.0,0.00024658,7]
[341318570,1730782241097,-151.0,0.00024658,7]
[341318571,1730782241107,-151.0,0.00024658,7]
[341318572,1730782241116,-213.210677,0.00024658,7]
[341318573,1730782241125,-151.0,0.00024658,7]
[341318574,1730782241134,-151.0,0.00024658,7]
[341318575,1730782241143,-151.0,0.00024658,7]
[341318576,1730782241152,-151.0,0.00024658,7]
[341318577,1730782241161,-151.0,0.00024658,7]
[341318578,1730782241170,-151.0,0.00024658,7]
[341318579,1730782241179,-151.0,0.00024658,7]
[341318580,1730782241189,-151.0,0.00024658,7]
[341318581,1730782241198,-151.0,0.00024658,7]
[341318582,1730782241211,-168.467286,0.00024658,7]
[341318583,1730782241220,-500.0,0.00024658,2]
[341318584,1730782241230,-500.0,0.00024658,2]
[341318585,1730782241239,-500.0,0.00024658,2]
[341318586,1730782241248,-500.0,0.00024658,2]
[341318587,1730782241258,-500.0,0.00024658,2]
[341318588,1730782241267,-500.0,0.00024658,2]
[341318589,1730782241277,-500.0,0.00024658,2]
[341318590,1730782241286,-500.0,0.00024658,2]
[341318591,1730782241295,-354.04308466,0.00024658,2]
[341318592,1730782241304,-500.0,0.00024658,2]
[341318593,1730782241321,-500.0,0.00024658,2]
[341318594,1730782241331,-500.0,0.00024658,2]
[341318595,1730782241341,-500.0,0.00024658,2]
[341318596,1730782241350,-500.0,0.00024658,2]
[341318597,1730782241360,-500.0,0.00024658,2]
[341318598,1730782241369,-500.0,0.00024658,2]
[341318599,1730782241379,-500.0,0.00024658,2]